[Event "FIDE Open World Rapid 2024"]
[Site "New York"]
[Date "2024.12.27"]
[Round "6.43"]
[White "Gretarsson, Helgi Ass"]
[Black "Pereira, Fabian"]
[Result "0-1"]
[ECO "E66"]
[WhiteElo "2418"]
[BlackElo "2123"]
[Annotator "ChessBase"]
[PlyCount "92"]
[EventDate "2024.12.14"]
[EventType "swiss"]
[EventCountry "USA"]
[SourceTitle "playchess.com"]
[Source "ChessBase"]
[SourceQuality "1"]
[TimeControl "900+10"]

1. Nf3 {[%emt 0:00:02]} Nf6 {[%emt 0:00:02]} 2. c4 {[%emt 0:00:01]} c5 {[%emt 0:00:02]} 3. g3 {[%emt 0:00:15]} g6 {[%emt 0:00:18]} 4. Bg2 {[%emt 0:00:01]} Bg7 {[%emt 0:00:01]} 5. O-O {[%emt 0:00:02]} O-O {[%emt 0:00:02]} 6. d4 {[%emt 0:00:30]} Nc6 {[%emt 0:02:21]} 7. d5 {[%emt 0:00:49]} Na5 {[%emt 0:00:02]} 8. Nfd2 {[%emt 0:02:35]} d6 {[%emt 0:00:11]} 9. Nc3 {[%emt 0:00:03]} e5 {[%emt 0:00:11]} 10. a3 {[%emt 0:01:35]} b6 {[%emt 0:00:03]} 11. b4 {[%emt 0:00:40]} Nb7 {[%emt 0:00:01]} 12. e4 {[%emt 0:02:11]} Ne8 {[%emt 0:01:25]} 13. Bb2 {[%emt 0:00:17]} f5 {[%emt 0:01:15]} 14. exf5 {[%emt 0:00:02]} gxf5 {[%emt 0:00:03]} 15. f4 {[%emt 0:00:01]} e4 {[%emt 0:00:13]} 16. g4 {[%emt 0:01:46]} Bd4+ {[%emt 0:03:02]} 17. Kh1 {[%emt 0:00:01]} fxg4 {[%emt 0:00:14]} 18. Ndxe4 {[%emt 0:00:13]} h6 {[%emt 0:00:48]} 19. Ng3 {[%emt 0:01:19]} Ng7 {[%emt 0:00:24]} 20. Qd2 {[%emt 0:01:34]} Bf5 {[%emt 0:02:38]} 21. Rae1 {[%emt 0:00:24]} Qh4 {[%emt 0:01:04]} 22. Be4 {[%emt 0:01:12]} Bd7 {[%emt 0:00:58]} 23. Bg6 {[%emt 0:00:33]} Nf5 {[%emt 0:01:40]} 24. Bxf5 {[%emt 0:01:32]} Bxf5 {[%emt 0:00:02]} 25. Re6 {[%emt 0:00:02]} Bxe6 {[%emt 0:00:56]} 26. dxe6 {[%emt 0:00:01]} Rae8 {[%emt 0:00:01]} 27. Re1 {[%emt 0:00:09]} Nd8 {[%emt 0:00:06]} 28. f5 {[%emt 0:00:05]} Be5 {[%emt 0:00:57]} 29. Nd5 {[%emt 0:01:07]} Nc6 {[%emt 0:00:08]} 30. Bxe5 {[%emt 0:00:37]} Nxe5 {[%emt 0:00:11]} 31. Qc3 {[%emt 0:00:06]} Nf3 {[%emt 0:00:26]} 32. Re2 {[%emt 0:00:01]} Nd4 {[%emt 0:00:01]} 33. Re4 {[%emt 0:00:42]} Nxf5 {[%emt 0:00:23]} 34. Nxf5 {[%emt 0:00:10]} Rxf5 {[%emt 0:00:01]} 35. Qg3 {[%emt 0:00:01]} Qxg3 {[%emt 0:00:08]} 36. hxg3 {[%emt 0:00:00]} h5 {[%emt 0:00:02]} 37. Kg2 {[%emt 0:00:02]} Kg7 {[%emt 0:00:03]} 38. Nc7 {[%emt 0:00:03]} Re7 {[%emt 0:00:08]} 39. Nd5 {[%emt 0:00:01]} Kf8 {[%emt 0:00:10]} 40. Re1 {[%emt 0:00:06]} Ke8 {[%emt 0:00:15]} 41. b5 {[%emt 0:00:20]} Re5 {[%emt 0:00:21]} 42. Rf1 {[%emt 0:00:09]} R7xe6 {[%emt 0:00:07]} 43. Nc7+ {[%emt 0:00:00]} Kd7 {[%emt 0:00:02]} 44. Nxe6 {[%emt 0:00:01]} Kxe6 {[%emt 0:00:01]} 45. Rf8 {[%emt 0:00:03]} Re2+ {[%emt 0:00:05]} 46. Kf1 {[%emt 0:00:01]} Ra2 {[%emt 0:00:01]} 0-1

[Event "FIDE Open World Rapid 2024"]
[Site "New York"]
[Date "2024.12.27"]
[Round "6.44"]
[White "Bok, Benjamin"]
[Black "Bilych, Oleksii"]
[Result "1-0"]
[ECO "A07"]
[WhiteElo "2593"]
[BlackElo "2435"]
[Annotator "ChessBase"]
[PlyCount "81"]
[EventDate "2024.12.14"]
[EventType "swiss"]
[EventCountry "USA"]
[SourceTitle "playchess.com"]
[Source "ChessBase"]
[SourceQuality "1"]
[TimeControl "900+10"]

1. Nf3 {[%emt 0:00:03]} d5 {[%emt 0:00:04]} 2. g3 {[%emt 0:00:03]} b6 {[%emt 0:00:09]} 3. c4 {[%emt 0:00:13]} dxc4 {[%emt 0:00:06]} 4. Na3 {[%emt 0:00:05]} Bb7 {[%emt 0:00:03]} 5. Bg2 {[%emt 0:00:20]} e6 {[%emt 0:00:09]} 6. Nxc4 {[%emt 0:00:03]} Nd7 {[%emt 0:00:11]} 7. O-O {[%emt 0:00:05]} Be7 {[%emt 0:00:26]} 8. d3 {[%emt 0:00:38]} Ngf6 {[%emt 0:00:08]} 9. b3 {[%emt 0:00:11]} O-O {[%emt 0:00:10]} 10. Bb2 {[%emt 0:00:02]} c5 {[%emt 0:00:07]} 11. e4 {[%emt 0:00:16]} b5 {[%emt 0:02:11]} 12. Ne3 {[%emt 0:00:04]} Qb6 {[%emt 0:01:50]} 13. Qe2 {[%emt 0:00:37]} Rac8 {[%emt 0:00:48]} 14. a4 {[%emt 0:01:21]} a6 {[%emt 0:00:06]} 15. h3 {[%emt 0:01:01]} Rfd8 {[%emt 0:00:29]} 16. Bc3 {[%emt 0:00:54]} b4 {[%emt 0:02:27]} 17. Bb2 {[%emt 0:00:43]} a5 {[%emt 0:00:01]} 18. Nc4 {[%emt 0:00:32]} Qa7 {[%emt 0:00:05]} 19. Rad1 {[%emt 0:00:22]} Nb6 {[%emt 0:00:28]} 20. Nfe5 {[%emt 0:00:51]} Nfd7 {[%emt 0:01:33]} 21. Qh5 {[%emt 0:03:00]} Nxe5 {[%emt 0:03:45]} 22. Nxe5 {[%emt 0:00:02]} Rf8 {[%emt 0:00:09]} 23. Qg4 {[%emt 0:00:07]} g6 {[%emt 0:00:39]} 24. Qf4 {[%emt 0:02:03]} f6 {[%emt 0:01:13]} 25. Ng4 {[%emt 0:00:05]} e5 {[%emt 0:00:01]} 26. Qe3 {[%emt 0:00:57]} Qb8 {[%emt 0:01:09]} 27. Kh1 {[%emt 0:01:15]} Qd6 {[%emt 0:00:13]} 28. f4 {[%emt 0:00:06]} Nd7 {[%emt 0:00:01]} 29. h4 {[%emt 0:01:07]} Qe6 {[%emt 0:00:54]} 30. Bh3 {[%emt 0:00:36]} Qxb3 {[%emt 0:00:02]} 31. Ba1 {[%emt 0:00:10]} Rcd8 {[%emt 0:00:08]} 32. Nh6+ {[%emt 0:02:09]} Kg7 {[%emt 0:00:02]} 33. Bxd7 {[%emt 0:00:02]} Rxd7 {[%emt 0:00:04]} 34. fxe5 {[%emt 0:00:03]} c4 {[%emt 0:00:12]} 35. exf6+ {[%emt 0:00:31]} Bxf6 {[%emt 0:00:01]} 36. Rxf6 {[%emt 0:00:17]} Rxf6 {[%emt 0:00:15]} 37. Bxf6+ {[%emt 0:00:04]} Kxf6 {[%emt 0:00:05]} 38. Rf1+ {[%emt 0:00:13]} Kg7 {[%emt 0:00:06]} 39. Qf4 {[%emt 0:00:10]} Rd8 {[%emt 0:00:32]} 40. Ng4 {[%emt 0:00:10]} Qc3 {[%emt 0:00:12]} 41. Qc7+ {[%emt 0:00:04]} 1-0

[Event "FIDE Open World Rapid 2024"]
[Site "New York"]
[Date "2024.12.27"]
[Round "6.44"]
[White "Wanyama, Harold"]
[Black "Sharshenbekov, Emir"]
[Result "0-1"]
[ECO "A21"]
[WhiteElo "2154"]
[BlackElo "2078"]
[Annotator "ChessBase"]
[PlyCount "78"]
[EventDate "2024.12.14"]
[EventType "swiss"]
[EventCountry "USA"]
[SourceTitle "playchess.com"]
[Source "ChessBase"]
[SourceQuality "1"]
[TimeControl "900+10"]

1. Nf3 {[%emt 0:05:51]} f5 {[%emt 0:00:15]} 2. c4 {[%emt 0:00:11]} Nf6 {[%emt 0:00:02]} 3. g3 {[%emt 0:00:07]} g6 {[%emt 0:00:02]} 4. Nc3 {[%emt 0:00:06]} Bg7 {[%emt 0:00:01]} 5. Bg2 {[%emt 0:00:03]} O-O {[%emt 0:00:03]} 6. Rb1 {[%emt 0:00:03]} d6 {[%emt 0:00:03]} 7. b4 {[%emt 0:00:03]} e5 {[%emt 0:00:02]} 8. d3 {[%emt 0:00:06]} h6 {[%emt 0:00:16]} 9. O-O {[%emt 0:00:04]} g5 {[%emt 0:00:04]} 10. b5 {[%emt 0:00:20]} Nbd7 {[%emt 0:01:24]} 11. a4 {[%emt 0:00:12]} a5 {[%emt 0:00:20]} 12. bxa6 {[%emt 0:00:39]} Rxa6 {[%emt 0:00:06]} 13. Nd2 {[%emt 0:00:07]} c6 {[%emt 0:00:45]} 14. Ba3 {[%emt 0:00:30]} Qe7 {[%emt 0:00:02]} 15. Qc2 {[%emt 0:01:07]} Kh8 {[%emt 0:00:18]} 16. Nb3 {[%emt 0:00:40]} Re8 {[%emt 0:01:12]} 17. a5 {[%emt 0:00:05]} Nf8 {[%emt 0:00:28]} 18. Rfc1 {[%emt 0:00:36]} Ng6 {[%emt 0:00:55]} 19. Qd2 {[%emt 0:01:11]} Rd8 {[%emt 0:00:31]} 20. Rc2 {[%emt 0:00:04]} f4 {[%emt 0:01:02]} 21. Rbc1 {[%emt 0:00:10]} h5 {[%emt 0:02:45]} 22. Na2 {[%emt 0:01:02]} Qc7 {[%emt 0:02:06]} 23. Nb4 {[%emt 0:01:07]} Ra7 {[%emt 0:00:09]} 24. Bb2 {[%emt 0:00:11]} h4 {[%emt 0:00:08]} 25. Ra1 {[%emt 0:00:26]} Kh7 {[%emt 0:01:43]} 26. Bc3 {[%emt 0:00:04]} g4 {[%emt 0:01:26]} 27. Rca2 {[%emt 0:00:04]} Bh6 {[%emt 0:00:04]} 28. Qb2 {[%emt 0:00:07]} hxg3 {[%emt 0:00:15]} 29. hxg3 {[%emt 0:02:52]} fxg3 {[%emt 0:00:07]} 30. Be1 {[%emt 0:00:01]} Nf4 {[%emt 0:01:41]} 31. fxg3 {[%emt 0:00:03]} Nxg2 {[%emt 0:00:01]} 32. Kxg2 {[%emt 0:00:01]} c5 {[%emt 0:00:08]} 33. Nd5 {[%emt 0:00:08]} Nxd5 {[%emt 0:00:04]} 34. cxd5 {[%emt 0:00:01]} Qf7 {[%emt 0:00:09]} 35. Nd2 {[%emt 0:00:46]} Be3 {[%emt 0:01:41]} 36. Ne4 {[%emt 0:00:37]} Bf5 {[%emt 0:00:24]} 37. Bd2 {[%emt 0:00:10]} Bxe4+ {[%emt 0:00:04]} 38. dxe4 {[%emt 0:00:11]} Qf2+ {[%emt 0:00:01]} 39. Kh1 {[%emt 0:00:01]} Kg6 {[%emt 0:00:12]} 0-1

[Event "FIDE Open World Rapid 2024"]
[Site "New York"]
[Date "2024.12.27"]
[Round "6.45"]
[White "Paravyan, David"]
[Black "Dudin, Gleb"]
[Result "1-0"]
[ECO "B90"]
[WhiteElo "2620"]
[BlackElo "2506"]
[Annotator "ChessBase"]
[PlyCount "79"]
[EventDate "2024.12.14"]
[EventType "swiss"]
[EventCountry "USA"]
[SourceTitle "playchess.com"]
[Source "ChessBase"]
[SourceQuality "1"]
[TimeControl "900+10"]

1. e4 {[%emt 0:00:03]} c5 {[%emt 0:01:00]} 2. Nf3 {[%emt 0:00:03]} d6 {[%emt 0:00:04]} 3. d4 {[%emt 0:00:03]} cxd4 {[%emt 0:00:02]} 4. Nxd4 {[%emt 0:00:03]} Nf6 {[%emt 0:00:03]} 5. Nc3 {[%emt 0:00:02]} a6 {[%emt 0:00:02]} 6. f3 {[%emt 0:00:09]} e5 {[%emt 0:00:06]} 7. Nb3 {[%emt 0:00:02]} Be6 {[%emt 0:00:06]} 8. Be3 {[%emt 0:00:04]} h5 {[%emt 0:00:08]} 9. Be2 {[%emt 0:00:20]} Nbd7 {[%emt 0:00:10]} 10. O-O {[%emt 0:00:03]} Rc8 {[%emt 0:01:10]} 11. a4 {[%emt 0:00:06]} Be7 {[%emt 0:00:26]} 12. a5 {[%emt 0:00:08]} h4 {[%emt 0:01:58]} 13. Qd2 {[%emt 0:00:35]} Nh5 {[%emt 0:02:42]} 14. Rfd1 {[%emt 0:00:49]} O-O {[%emt 0:00:51]} 15. Bf1 {[%emt 0:01:24]} Re8 {[%emt 0:01:50]} 16. Nd5 {[%emt 0:01:17]} Bxd5 {[%emt 0:00:25]} 17. exd5 {[%emt 0:00:15]} e4 {[%emt 0:02:12]} 18. fxe4 {[%emt 0:05:16]} Nhf6 {[%emt 0:00:07]} 19. Ra4 {[%emt 0:00:22]} Ng4 {[%emt 0:00:08]} 20. Bf4 {[%emt 0:01:28]} Bf6 {[%emt 0:00:27]} 21. h3 {[%emt 0:01:16]} Nge5 {[%emt 0:00:02]} 22. Rb4 {[%emt 0:00:45]} Qc7 {[%emt 0:00:23]} 23. c3 {[%emt 0:00:21]} Rb8 {[%emt 0:01:28]} 24. Be3 {[%emt 0:00:38]} Re7 {[%emt 0:02:14]} 25. c4 {[%emt 0:01:24]} Ree8 {[%emt 0:00:18]} 26. Rc1 {[%emt 0:00:26]} Be7 {[%emt 0:00:16]} 27. Qf2 {[%emt 0:00:22]} Nc5 {[%emt 0:00:17]} 28. Nxc5 {[%emt 0:00:12]} dxc5 {[%emt 0:00:01]} 29. Rb6 {[%emt 0:00:18]} Nd7 {[%emt 0:00:03]} 30. Bf4 {[%emt 0:00:12]} Ne5 {[%emt 0:00:45]} 31. Kh1 {[%emt 0:00:34]} Bd6 {[%emt 0:00:17]} 32. Qxh4 {[%emt 0:00:08]} Nxc4 {[%emt 0:00:08]} 33. Bxd6 {[%emt 0:00:35]} Nxd6 {[%emt 0:00:02]} 34. Qf4 {[%emt 0:00:02]} Rbd8 {[%emt 0:00:17]} 35. e5 {[%emt 0:00:20]} Nc8 {[%emt 0:00:16]} 36. d6 {[%emt 0:00:02]} Qd7 {[%emt 0:00:00]} 37. Rb3 {[%emt 0:00:08]} Qe6 {[%emt 0:00:25]} 38. Rxb7 {[%emt 0:00:06]} Qxe5 {[%emt 0:00:09]} 39. Qxf7+ {[%emt 0:00:14]} Kh8 {[%emt 0:00:01]} 40. Re1 {[%emt 0:00:10]} 1-0

[Event "FIDE Open World Rapid 2024"]
[Site "New York"]
[Date "2024.12.27"]
[Round "6.46"]
[White "Hong, Andrew"]
[Black "Kacharava, Nikolozi"]
[Result "1-0"]
[ECO "C94"]
[WhiteElo "2572"]
[BlackElo "2510"]
[Annotator "ChessBase"]
[PlyCount "77"]
[EventDate "2024.12.14"]
[EventType "swiss"]
[EventCountry "USA"]
[SourceTitle "playchess.com"]
[Source "ChessBase"]
[SourceQuality "1"]
[TimeControl "900+10"]

1. e4 {[%emt 0:00:05]} e5 {[%emt 0:00:01]} 2. Nf3 {[%emt 0:00:04]} Nc6 {[%emt 0:00:01]} 3. Bb5 {[%emt 0:00:15]} a6 {[%emt 0:00:02]} 4. Ba4 {[%emt 0:00:06]} Nf6 {[%emt 0:00:02]} 5. O-O {[%emt 0:00:09]} Be7 {[%emt 0:00:17]} 6. Re1 {[%emt 0:00:14]} b5 {[%emt 0:00:02]} 7. Bb3 {[%emt 0:00:02]} O-O {[%emt 0:00:15]} 8. h3 {[%emt 0:00:24]} Bb7 {[%emt 0:01:03]} 9. d3 {[%emt 0:00:05]} d6 {[%emt 0:00:20]} 10. c3 {[%emt 0:00:45]} Nb8 {[%emt 0:01:03]} 11. Nbd2 {[%emt 0:00:29]} Nbd7 {[%emt 0:00:15]} 12. Nf1 {[%emt 0:00:29]} Re8 {[%emt 0:00:52]} 13. Ng3 {[%emt 0:00:33]} Bf8 {[%emt 0:00:12]} 14. Be3 {[%emt 0:04:56]} c5 {[%emt 0:02:40]} 15. Ng5 {[%emt 0:00:44]} d5 {[%emt 0:00:40]} 16. exd5 {[%emt 0:00:15]} h6 {[%emt 0:03:59]} 17. Ne6 {[%emt 0:00:18]} fxe6 {[%emt 0:00:03]} 18. dxe6 {[%emt 0:00:03]} Nd5 {[%emt 0:00:17]} 19. exd7 {[%emt 0:00:35]} Qxd7 {[%emt 0:00:02]} 20. Ne4 {[%emt 0:01:06]} Rac8 {[%emt 0:01:21]} 21. Bxh6 {[%emt 0:00:40]} c4 {[%emt 0:01:57]} 22. dxc4 {[%emt 0:00:13]} bxc4 {[%emt 0:00:12]} 23. Ba4 {[%emt 0:00:13]} Bc6 {[%emt 0:00:04]} 24. Bxc6 {[%emt 0:00:18]} Qxc6 {[%emt 0:00:03]} 25. Bg5 {[%emt 0:00:13]} Rb8 {[%emt 0:00:49]} 26. Qe2 {[%emt 0:01:02]} Nf4 {[%emt 0:00:34]} 27. Qf3 {[%emt 0:00:02]} Re6 {[%emt 0:01:00]} 28. Bxf4 {[%emt 0:00:39]} exf4 {[%emt 0:00:01]} 29. Re2 {[%emt 0:00:07]} Qc7 {[%emt 0:01:24]} 30. Ng5 {[%emt 0:00:47]} Rxe2 {[%emt 0:00:03]} 31. Qxe2 {[%emt 0:00:06]} Qc6 {[%emt 0:00:14]} 32. Qh5 {[%emt 0:00:17]} Qh6 {[%emt 0:00:04]} 33. Qf7+ {[%emt 0:00:01]} Kh8 {[%emt 0:00:01]} 34. Qf5 {[%emt 0:00:04]} Qh4 {[%emt 0:00:36]} 35. Re1 {[%emt 0:00:08]} Kg8 {[%emt 0:00:15]} 36. Qg6 {[%emt 0:00:32]} Qh6 {[%emt 0:00:13]} 37. Qf7+ {[%emt 0:00:03]} Kh8 {[%emt 0:00:01]} 38. Qxf4 {[%emt 0:00:09]} Qb6 {[%emt 0:00:20]} 39. Qh4+ {[%emt 0:00:03]} 1-0